[Event "*** Titled Tuesday Blitz"]
[Site "Chess.com"]
[Date "2019.10.01"]
[Round "7"]
[White "ural58"]
[Black "Shubinkirill2003"]
[Result "1/2-1/2"]
[WhiteElo "2396"]
[BlackElo "2519"]
[TimeControl "180+2"]
[EndTime "14:42:54 PDT"]
[Termination "Game drawn by repetition"]

1. Nc3 {[%clk 0:03:01.9]} 1... e6 {[%clk 0:02:58.7]} 2. d4 {[%clk 0:02:59.4]}
2... d5 {[%clk 0:02:58.5]} 3. Bf4 {[%clk 0:02:58.1]} 3... Nf6 {[%clk 0:02:59]}
4. Nb5 {[%clk 0:02:48.2]} 4... Na6 {[%clk 0:02:25.1]} 5. e3 {[%clk 0:02:47.6]}
5... c6 {[%clk 0:02:25.4]} 6. Nc3 {[%clk 0:02:47.7]} 6... Nb8 {[%clk 0:02:26.3]}
7. Bd3 {[%clk 0:02:47.7]} 7... a6 {[%clk 0:02:26.8]} 8. Nf3 {[%clk 0:02:45.3]}
8... c5 {[%clk 0:02:28]} 9. O-O {[%clk 0:02:40.2]} 9... Nc6 {[%clk 0:02:28.6]}
10. Re1 {[%clk 0:02:41]} 10... c4 {[%clk 0:02:28]} 11. Bf1 {[%clk 0:02:40.9]}
11... b5 {[%clk 0:02:28.9]} 12. e4 {[%clk 0:02:40.1]} 12... dxe4 {[%clk
0:02:23.7]} 13. Nxe4 {[%clk 0:02:40.7]} 13... Nxe4 {[%clk 0:02:24.7]} 14. Rxe4
{[%clk 0:02:41.4]} 14... Ne7 {[%clk 0:02:25.4]} 15. Bg5 {[%clk 0:02:33.3]} 15...
Bb7 {[%clk 0:02:23.2]} 16. Re1 {[%clk 0:02:16.6]} 16... Qd5 {[%clk 0:02:14.3]}
17. b3 {[%clk 0:02:08.1]} 17... Ng6 {[%clk 0:02:08.3]} 18. bxc4 {[%clk
0:02:07.7]} 18... bxc4 {[%clk 0:02:08.5]} 19. Rb1 {[%clk 0:02:05.8]} 19... Bc6
{[%clk 0:01:58.3]} 20. Ne5 {[%clk 0:02:02.2]} 20... Bd6 {[%clk 0:01:50.8]} 21.
Nxc6 {[%clk 0:01:59.7]} 21... Qxc6 {[%clk 0:01:50.5]} 22. d5 {[%clk 0:01:55.9]}
22... Qc7 {[%clk 0:01:47.7]} 23. g3 {[%clk 0:01:40.9]} 23... e5 {[%clk
0:01:43.6]} 24. Qg4 {[%clk 0:01:37]} 24... O-O {[%clk 0:01:26.6]} 25. Qxc4
{[%clk 0:01:34.8]} 25... Qa5 {[%clk 0:01:26.9]} 26. Qc6 {[%clk 0:01:08.4]} 26...
Bc5 {[%clk 0:01:15.7]} 27. Be3 {[%clk 0:00:55.9]} 27... Rfc8 {[%clk 0:01:09.5]}
28. Qb7 {[%clk 0:00:53.8]} 28... Bxe3 {[%clk 0:01:03.9]} 29. Rxe3 {[%clk
0:00:54.7]} 29... Qxa2 {[%clk 0:01:03.7]} 30. d6 {[%clk 0:00:55.4]} 30... Qxc2
{[%clk 0:00:58.1]} 31. d7 {[%clk 0:00:55.5]} 31... Rd8 {[%clk 0:00:58.8]} 32.
Bd3 {[%clk 0:00:40.9]} 32... Qd2 {[%clk 0:00:53.3]} 33. Qd5 {[%clk 0:00:21.4]}
33... Ra7 {[%clk 0:00:31.1]} 34. Re2 {[%clk 0:00:15.5]} 34... Qc3 {[%clk
0:00:17.4]} 35. Bf5 {[%clk 0:00:15.7]} 35... Nf8 {[%clk 0:00:15.3]} 36. Rc2
{[%clk 0:00:16.5]} 36... Qa3 {[%clk 0:00:14.1]} 37. Rc8 {[%clk 0:00:17.1]} 37...
Qe7 {[%clk 0:00:14.9]} 38. Rxd8 {[%clk 0:00:17.5]} 38... Qxd8 {[%clk 0:00:15.5]}
39. Rd1 {[%clk 0:00:19.4]} 39... a5 {[%clk 0:00:11.4]} 40. Qxe5 {[%clk
0:00:19.6]} 40... a4 {[%clk 0:00:08.8]} 41. Qc5 {[%clk 0:00:20.8]} 41... Ra8
{[%clk 0:00:08.8]} 42. Qa3 {[%clk 0:00:22]} 42... g6 {[%clk 0:00:08.2]} 43. Bh3
{[%clk 0:00:23]} 43... h5 {[%clk 0:00:08.2]} 44. Rd4 {[%clk 0:00:24]} 44... Qa5
{[%clk 0:00:05.9]} 45. Rxa4 {[%clk 0:00:21.2]} 45... Qe1+ {[%clk 0:00:05.3]} 46.
Kg2 {[%clk 0:00:22.4]} 46... Rd8 {[%clk 0:00:06.3]} 47. Rd4 {[%clk 0:00:22.9]}
47... Qe5 {[%clk 0:00:06.6]} 48. Qd3 {[%clk 0:00:23.7]} 48... g5 {[%clk
0:00:07.6]} 49. Kg1 {[%clk 0:00:24.8]} 49... g4 {[%clk 0:00:08.6]} 50. Bg2
{[%clk 0:00:26.1]} 50... Ne6 {[%clk 0:00:09.6]} 51. Rd5 {[%clk 0:00:26.7]} 51...
Qe1+ {[%clk 0:00:10.7]} 52. Bf1 {[%clk 0:00:28]} 52... Qc1 {[%clk 0:00:09]} 53.
Qd2 {[%clk 0:00:28.7]} 53... Qxd2 {[%clk 0:00:05.7]} 54. Rxd2 {[%clk 0:00:29.7]}
54... Kf8 {[%clk 0:00:06.7]} 55. Rd5 {[%clk 0:00:27.8]} 55... Ng7 {[%clk
0:00:07.3]} 56. Bb5 {[%clk 0:00:26.8]} 56... Ke7 {[%clk 0:00:08.1]} 57. Rg5
{[%clk 0:00:24.1]} 57... Kf6 {[%clk 0:00:08.1]} 58. Rc5 {[%clk 0:00:20.2]} 58...
Nf5 {[%clk 0:00:07.5]} 59. Kf1 {[%clk 0:00:19.4]} 59... Nd4 {[%clk 0:00:07]} 60.
Ba4 {[%clk 0:00:19.5]} 60... Ke7 {[%clk 0:00:06.8]} 61. Rxh5 {[%clk 0:00:20.1]}
61... Ra8 {[%clk 0:00:07.7]} 62. Bb5 {[%clk 0:00:17]} 62... Ra5 {[%clk 0:00:03]}
63. Re5+ {[%clk 0:00:15.9]} 63... Ne6 {[%clk 0:00:02.3]} 64. Rd5 {[%clk
0:00:16.2]} 64... Kd8 {[%clk 0:00:02.5]} 65. Bc4 {[%clk 0:00:16.9]} 65... Ra1+
{[%clk 0:00:03.2]} 66. Kg2 {[%clk 0:00:17.8]} 66... Nc7 {[%clk 0:00:03.1]} 67.
Rf5 {[%clk 0:00:18.4]} 67... Kxd7 {[%clk 0:00:03.8]} 68. Rxf7+ {[%clk
0:00:19.3]} 68... Kd6 {[%clk 0:00:05.2]} 69. Rg7 {[%clk 0:00:21.2]} 69... Ra4
{[%clk 0:00:04.8]} 70. Be2 {[%clk 0:00:22.3]} 70... Nd5 {[%clk 0:00:04.5]} 71.
Rxg4 {[%clk 0:00:23.3]} 71... Ra2 {[%clk 0:00:05.5]} 72. Bf3 {[%clk 0:00:24.1]}
72... Ne3+ {[%clk 0:00:05.7]} 73. Kh3 {[%clk 0:00:22.1]} 73... Nxg4 {[%clk
0:00:06]} 74. Kxg4 {[%clk 0:00:23.1]} 74... Rxf2 {[%clk 0:00:07.3]} 75. h4
{[%clk 0:00:24.1]} 75... Ke5 {[%clk 0:00:08.7]} 76. Bc6 {[%clk 0:00:24.5]} 76...
Kf6 {[%clk 0:00:09.8]} 77. Be4 {[%clk 0:00:24.1]} 77... Kg7 {[%clk 0:00:10.6]}
78. Kg5 {[%clk 0:00:24.6]} 78... Ra2 {[%clk 0:00:11]} 79. g4 {[%clk 0:00:24.5]}
79... Ra4 {[%clk 0:00:12]} 80. Kf4 {[%clk 0:00:24.8]} 80... Ra1 {[%clk
0:00:10.8]} 81. g5 {[%clk 0:00:25.8]} 81... Rg1 {[%clk 0:00:11.4]} 82. Bf3
{[%clk 0:00:24.3]} 82... Kg6 {[%clk 0:00:09]} 83. Be4+ {[%clk 0:00:25.4]} 83...
Kg7 {[%clk 0:00:09.9]} 84. Bf5 {[%clk 0:00:26.2]} 84... Rf1+ {[%clk 0:00:09.9]}
85. Kg4 {[%clk 0:00:27.5]} 85... Rg1+ {[%clk 0:00:10.6]} 86. Kh5 {[%clk
0:00:28.8]} 86... Rf1 {[%clk 0:00:11.6]} 87. Be4 {[%clk 0:00:29.7]} 87... Rg1
{[%clk 0:00:12.8]} 88. Bf3 {[%clk 0:00:30.9]} 88... Rg3 {[%clk 0:00:13.6]} 89.
Be2 {[%clk 0:00:31.5]} 89... Rg1 {[%clk 0:00:14.2]} 90. Bd3 {[%clk 0:00:32.2]}
90... Rg3 {[%clk 0:00:14.7]} 91. Be4 {[%clk 0:00:32.8]} 91... Rg1 {[%clk
0:00:15.3]} 92. Bd5 {[%clk 0:00:29.8]} 92... Rd1 {[%clk 0:00:14.5]} 93. Be4
{[%clk 0:00:29.7]} 93... Re1 {[%clk 0:00:14]} 94. Bf3 {[%clk 0:00:30.4]} 94...
Rg1 {[%clk 0:00:14.6]} 95. Be4 {[%clk 0:00:31]} 95... Rg3 {[%clk 0:00:15.4]} 96.
Bd5 {[%clk 0:00:31.4]} 96... Rg1 {[%clk 0:00:14.9]} 97. Be4 {[%clk 0:00:32.3]}
97... Rg3 {[%clk 0:00:15.6]} 98. Bd5 {[%clk 0:00:33.3]} 98... Rg1 {[%clk
0:00:16.6]} 99. Be4 {[%clk 0:00:34.5]} 1/2-1/2

[Event "*** Titled Tuesday Blitz"]
[Site "Chess.com"]
[Date "2019.10.01"]
[Round "8"]
[White "ecwinslow"]
[Black "akretchetov"]
[Result "0-1"]
[WhiteElo "2110"]
[BlackElo "2366"]
[TimeControl "180+2"]
[EndTime "14:53:54 PDT"]
[Termination "akretchetov won by resignation"]

1. e4 {[%clk 0:03:01.9]} 1... e5 {[%clk 0:03:00.7]} 2. Nf3 {[%clk 0:03:00.7]}
2... Nc6 {[%clk 0:03:01.9]} 3. Bb5 {[%clk 0:03:01.6]} 3... a6 {[%clk 0:03:03.2]}
4. Ba4 {[%clk 0:03:02]} 4... d6 {[%clk 0:03:04.3]} 5. c3 {[%clk 0:02:59.3]} 5...
Bd7 {[%clk 0:03:05]} 6. d4 {[%clk 0:02:56.5]} 6... g6 {[%clk 0:03:06]} 7. Be3
{[%clk 0:02:49.2]} 7... Bg7 {[%clk 0:03:05.4]} 8. Qd2 {[%clk 0:02:39.7]} 8...
Nf6 {[%clk 0:03:05.9]} 9. Bc2 {[%clk 0:02:37.7]} 9... O-O {[%clk 0:02:41.3]} 10.
h3 {[%clk 0:02:33]} 10... Re8 {[%clk 0:02:40.8]} 11. d5 {[%clk 0:02:33.4]} 11...
Ne7 {[%clk 0:02:41.3]} 12. c4 {[%clk 0:02:32.2]} 12... Rf8 {[%clk 0:02:39.7]}
13. Nc3 {[%clk 0:02:31.8]} 13... Nh5 {[%clk 0:02:40.6]} 14. g3 {[%clk
0:02:13.8]} 14... f5 {[%clk 0:02:37.4]} 15. exf5 {[%clk 0:02:06.6]} 15... gxf5
{[%clk 0:02:36.3]} 16. Ng5 {[%clk 0:02:05.7]} 16... Ng6 {[%clk 0:02:23.6]} 17.
g4 {[%clk 0:01:57.2]} 17... Nhf4 {[%clk 0:02:20.9]} 18. Ne6 {[%clk 0:01:53.4]}
18... Nxe6 {[%clk 0:02:13.3]} 19. gxf5 {[%clk 0:01:54.2]} 19... Nd4 {[%clk
0:02:06.9]} 20. Bxd4 {[%clk 0:01:47]} 20... exd4 {[%clk 0:02:07.8]} 21. fxg6
{[%clk 0:01:45]} 21... dxc3 {[%clk 0:02:07.6]} 22. gxh7+ {[%clk 0:01:45.9]}
22... Kh8 {[%clk 0:02:08]} 23. bxc3 {[%clk 0:01:47.7]} 23... Qe7+ {[%clk
0:02:05.5]} 0-1

[Event "*** Titled Tuesday Blitz"]
[Site "Chess.com"]
[Date "2019.10.01"]
[Round "8"]
[White "djano"]
[Black "WPWPWP-2015"]
[Result "1-0"]
[WhiteElo "2412"]
[BlackElo "2469"]
[TimeControl "180+2"]
[EndTime "14:53:59 PDT"]
[Termination "djano won by checkmate"]

1. e4 {[%clk 0:03:01.9]} 1... c5 {[%clk 0:02:59.4]} 2. Nf3 {[%clk 0:03:01.4]}
2... d6 {[%clk 0:03:00.5]} 3. d4 {[%clk 0:03:02.1]} 3... cxd4 {[%clk 0:03:01.5]}
4. Nxd4 {[%clk 0:03:03.5]} 4... Nf6 {[%clk 0:03:02.8]} 5. Nc3 {[%clk 0:03:04.9]}
5... a6 {[%clk 0:03:04.3]} 6. Rg1 {[%clk 0:03:05.2]} 6... e5 {[%clk 0:03:04.2]}
7. Nb3 {[%clk 0:03:02.1]} 7... Be7 {[%clk 0:03:05.4]} 8. g4 {[%clk 0:03:03.1]}
8... h6 {[%clk 0:03:05.1]} 9. h4 {[%clk 0:03:04.3]} 9... Be6 {[%clk 0:03:03.6]}
10. g5 {[%clk 0:03:05.6]} 10... hxg5 {[%clk 0:03:03.5]} 11. hxg5 {[%clk
0:03:07.5]} 11... Nfd7 {[%clk 0:03:01]} 12. g6 {[%clk 0:03:07.8]} 12... f5
{[%clk 0:02:59.9]} 13. exf5 {[%clk 0:03:07.7]} 13... Bxf5 {[%clk 0:02:59.6]} 14.
Bc4 {[%clk 0:03:05.3]} 14... Nf6 {[%clk 0:02:49.9]} 15. Qf3 {[%clk 0:02:52.5]}
15... Qc8 {[%clk 0:02:46.4]} 16. Bf7+ {[%clk 0:02:49]} 16... Kd8 {[%clk
0:02:29.3]} 17. Be3 {[%clk 0:02:49.9]} 17... Nbd7 {[%clk 0:02:28.5]} 18. Qxf5
{[%clk 0:02:48.1]} 18... Qc6 {[%clk 0:02:12.8]} 19. O-O-O {[%clk 0:02:46.9]}
19... Rc8 {[%clk 0:02:10.4]} 20. Kb1 {[%clk 0:02:44.1]} 20... b5 {[%clk
0:02:04.1]} 21. Nd5 {[%clk 0:02:36.5]} 21... e4 {[%clk 0:01:44.4]} 22. Nd4
{[%clk 0:02:25]} 22... Qc5 {[%clk 0:01:26.9]} 23. Ne6# {[%clk 0:02:25.6]} 1-0

[Event "*** Titled Tuesday Blitz"]
[Site "Chess.com"]
[Date "2019.10.01"]
[Round "8"]
[White "Witik"]
[Black "ENEASZ"]
[Result "1-0"]
[WhiteElo "2649"]
[BlackElo "2516"]
[TimeControl "180+2"]
[EndTime "14:54:47 PDT"]
[Termination "Witik won by resignation"]

1. e4 {[%clk 0:03:01.9]} 1... d6 {[%clk 0:03:00.9]} 2. d4 {[%clk 0:03:00.5]}
2... Nf6 {[%clk 0:03:01.8]} 3. Nc3 {[%clk 0:03:01.7]} 3... e5 {[%clk 0:03:02.9]}
4. Nge2 {[%clk 0:03:02.4]} 4... Be7 {[%clk 0:03:03.6]} 5. h3 {[%clk 0:03:03.4]}
5... O-O {[%clk 0:03:05]} 6. g4 {[%clk 0:03:04.4]} 6... c6 {[%clk 0:03:06.8]} 7.
Bg2 {[%clk 0:03:04.7]} 7... b5 {[%clk 0:03:07.7]} 8. a3 {[%clk 0:03:05.9]} 8...
a5 {[%clk 0:03:08.5]} 9. O-O {[%clk 0:03:04.7]} 9... Ba6 {[%clk 0:03:09.6]} 10.
Ng3 {[%clk 0:02:58]} 10... b4 {[%clk 0:03:10.6]} 11. Nce2 {[%clk 0:02:58.4]}
11... Re8 {[%clk 0:03:10.3]} 12. Be3 {[%clk 0:02:44.4]} 12... Bf8 {[%clk
0:03:08.6]} 13. axb4 {[%clk 0:02:23.3]} 13... axb4 {[%clk 0:03:07.4]} 14. Qd2
{[%clk 0:02:15.4]} 14... exd4 {[%clk 0:02:53.4]} 15. Bxd4 {[%clk 0:02:12.2]}
15... d5 {[%clk 0:02:54.4]} 16. e5 {[%clk 0:02:05.9]} 16... Nfd7 {[%clk
0:02:52.4]} 17. f4 {[%clk 0:02:03.1]} 17... f6 {[%clk 0:02:47.7]} 18. exf6
{[%clk 0:01:29.5]} 18... Nxf6 {[%clk 0:02:49.6]} 19. g5 {[%clk 0:01:30.5]} 19...
Ne4 {[%clk 0:02:46]} 20. Bxe4 {[%clk 0:01:24.4]} 20... dxe4 {[%clk 0:02:47.9]}
21. Qe3 {[%clk 0:01:23.7]} 21... Qc8 {[%clk 0:02:41.8]} 22. f5 {[%clk
0:01:14.5]} 22... c5 {[%clk 0:02:42.8]} 23. f6 {[%clk 0:01:15.5]} 23... cxd4
{[%clk 0:02:35.3]} 24. f7+ {[%clk 0:01:14.9]} 24... Kh8 {[%clk 0:02:36.4]} 25.
fxe8=Q {[%clk 0:01:15.2]} 25... Qxe8 {[%clk 0:02:36.3]} 26. Qxe4 {[%clk
0:01:15.3]} 1-0

[Event "*** Titled Tuesday Blitz"]
[Site "Chess.com"]
[Date "2019.10.01"]
[Round "8"]
[White "ExploringChess"]
[Black "kuli4ik"]
[Result "1-0"]
[WhiteElo "2934"]
[BlackElo "2789"]
[TimeControl "180+2"]
[EndTime "14:55:44 PDT"]
[Termination "ExploringChess won by resignation"]

1. e4 {[%clk 0:03:00.6]} 1... e6 {[%clk 0:02:59.3]} 2. d3 {[%clk 0:03:00.1]}
2... d5 {[%clk 0:02:59.8]} 3. Nd2 {[%clk 0:03:00]} 3... c5 {[%clk 0:03:00.8]} 4.
Ngf3 {[%clk 0:02:59.8]} 4... Nc6 {[%clk 0:03:02.3]} 5. g3 {[%clk 0:02:52.1]}
5... Nf6 {[%clk 0:03:01.5]} 6. Bg2 {[%clk 0:02:52.2]} 6... g6 {[%clk 0:03:02.4]}
7. O-O {[%clk 0:02:50.4]} 7... Bg7 {[%clk 0:03:02.5]} 8. Re1 {[%clk 0:02:45.4]}
8... O-O {[%clk 0:03:02.5]} 9. c3 {[%clk 0:02:44.4]} 9... a5 {[%clk 0:03:02.8]}
10. exd5 {[%clk 0:02:40.7]} 10... exd5 {[%clk 0:03:03.1]} 11. Nb3 {[%clk
0:02:39]} 11... b6 {[%clk 0:02:50.5]} 12. a4 {[%clk 0:02:40.1]} 12... Ra7 {[%clk
0:02:37.3]} 13. d4 {[%clk 0:02:31.1]} 13... c4 {[%clk 0:02:37.6]} 14. Nbd2
{[%clk 0:02:22.5]} 14... Re8 {[%clk 0:02:36.7]} 15. Rxe8+ {[%clk 0:02:18]} 15...
Qxe8 {[%clk 0:02:36.9]} 16. b3 {[%clk 0:02:18.1]} 16... cxb3 {[%clk 0:02:31.1]}
17. Qxb3 {[%clk 0:02:20]} 17... Qd8 {[%clk 0:02:24.3]} 18. Ba3 {[%clk 0:02:18]}
18... Ne4 {[%clk 0:02:05.9]} 19. Nxe4 {[%clk 0:02:10.3]} 19... dxe4 {[%clk
0:02:06.7]} 20. Nd2 {[%clk 0:02:12.2]} 20... Be6 {[%clk 0:02:01]} 21. Qb5 {[%clk
0:02:04.4]} 21... Nxd4 {[%clk 0:01:59.1]} 22. cxd4 {[%clk 0:02:03.5]} 22... e3
{[%clk 0:01:46.6]} 23. fxe3 {[%clk 0:01:58.5]} 23... Bxd4 {[%clk 0:01:44.5]} 24.
Qd3 {[%clk 0:01:59.7]} 24... Rd7 {[%clk 0:01:36.5]} 25. exd4 {[%clk 0:01:55.2]}
25... Rxd4 {[%clk 0:01:37.4]} 26. Qc3 {[%clk 0:01:56.7]} 26... Rxd2 {[%clk
0:01:37.3]} 27. Bb2 {[%clk 0:01:57.1]} 27... Rd1+ {[%clk 0:01:29.6]} 28. Bf1
{[%clk 0:01:44.4]} 28... Kf8 {[%clk 0:01:21.6]} 29. Qg7+ {[%clk 0:01:34.9]}
29... Ke8 {[%clk 0:01:22.3]} 30. Qh8+ {[%clk 0:01:24.1]} 30... Ke7 {[%clk
0:01:21]} 31. Bf6+ {[%clk 0:01:22.6]} 1-0

[Event "*** Titled Tuesday Blitz"]
[Site "Chess.com"]
[Date "2019.10.01"]
[Round "8"]
[White "JussupowFan"]
[Black "ChessBitl"]
[Result "1-0"]
[WhiteElo "2207"]
[BlackElo "2289"]
[TimeControl "180+2"]
[EndTime "14:56:02 PDT"]
[Termination "JussupowFan won by resignation"]

1. e4 {[%clk 0:03:01.9]} 1... c5 {[%clk 0:03:00.7]} 2. Nf3 {[%clk 0:03:02.4]}
2... Nc6 {[%clk 0:03:02.3]} 3. d4 {[%clk 0:03:02.4]} 3... cxd4 {[%clk
0:03:03.8]} 4. Nxd4 {[%clk 0:03:04.1]} 4... g6 {[%clk 0:03:05.4]} 5. c4 {[%clk
0:03:04.9]} 5... Nf6 {[%clk 0:03:05.6]} 6. Nc3 {[%clk 0:03:05.1]} 6... d6 {[%clk
0:03:07.2]} 7. Be2 {[%clk 0:03:02.3]} 7... Nxd4 {[%clk 0:03:08]} 8. Qxd4 {[%clk
0:03:03]} 8... Bg7 {[%clk 0:03:09.6]} 9. Be3 {[%clk 0:03:04.5]} 9... O-O {[%clk
0:03:10.9]} 10. Qd2 {[%clk 0:03:03.2]} 10... Be6 {[%clk 0:03:11.9]} 11. O-O
{[%clk 0:03:00.9]} 11... Qa5 {[%clk 0:03:13.3]} 12. Rad1 {[%clk 0:02:57.5]}
12... Rfc8 {[%clk 0:03:11.8]} 13. b3 {[%clk 0:02:57.8]} 13... a6 {[%clk
0:03:12.8]} 14. Bd4 {[%clk 0:02:49.4]} 14... Nd7 {[%clk 0:03:02.9]} 15. f4
{[%clk 0:02:45.1]} 15... Bxd4+ {[%clk 0:03:02.5]} 16. Qxd4 {[%clk 0:02:47]}
16... Qc5 {[%clk 0:03:01.9]} 17. f5 {[%clk 0:02:46.2]} 17... Qxd4+ {[%clk
0:02:53]} 18. Rxd4 {[%clk 0:02:46.7]} 18... b5 {[%clk 0:02:48.3]} 19. fxe6
{[%clk 0:02:39.3]} 19... fxe6 {[%clk 0:02:49.1]} 20. Bg4 {[%clk 0:02:36.2]}
20... Nf8 {[%clk 0:02:48.8]} 21. e5 {[%clk 0:02:19.9]} 21... dxe5 {[%clk
0:02:34.2]} 22. Re4 {[%clk 0:02:17.6]} 22... Rc5 {[%clk 0:02:31]} 23. Rfe1
{[%clk 0:02:15.1]} 23... Rac8 {[%clk 0:02:29.8]} 24. Rxe5 {[%clk 0:02:11.7]}
24... bxc4 {[%clk 0:02:25.4]} 25. b4 {[%clk 0:02:08]} 25... Rxe5 {[%clk
0:02:21.1]} 26. Rxe5 {[%clk 0:02:09.9]} 26... Kf7 {[%clk 0:02:11.4]} 27. Re4
{[%clk 0:02:05.5]} 27... Rc6 {[%clk 0:01:56.4]} 28. a4 {[%clk 0:02:06.2]} 28...
Nd7 {[%clk 0:01:54.4]} 29. b5 {[%clk 0:02:04.3]} 29... axb5 {[%clk 0:01:55.2]}
30. axb5 {[%clk 0:02:06.2]} 30... Rb6 {[%clk 0:01:46.9]} 31. Rxc4 {[%clk
0:02:07]} 31... Nf6 {[%clk 0:01:36.9]} 32. Bf3 {[%clk 0:02:06.3]} 32... e5
{[%clk 0:01:36.7]} 33. Rc6 {[%clk 0:02:06.2]} 33... Rb8 {[%clk 0:01:34.6]} 34.
b6 {[%clk 0:02:01]} 34... Ke8 {[%clk 0:01:35.4]} 35. b7 {[%clk 0:02:01.1]} 35...
Kd7 {[%clk 0:01:33.8]} 36. Ra6 {[%clk 0:01:55]} 36... e4 {[%clk 0:01:32.2]} 37.
Nxe4 {[%clk 0:01:55]} 37... Nxe4 {[%clk 0:01:12.4]} 38. Bxe4 {[%clk 0:01:56.9]}
38... Kc7 {[%clk 0:01:13.8]} 39. Ra8 {[%clk 0:01:57.7]} 39... e5 {[%clk
0:01:12.4]} 40. Rxb8 {[%clk 0:01:58.4]} 40... Kxb8 {[%clk 0:01:13]} 41. Kf2
{[%clk 0:02:00.3]} 1-0

[Event "*** Titled Tuesday Blitz"]
[Site "Chess.com"]
[Date "2019.10.01"]
[Round "8"]
[White "politeplayer"]
[Black "Sjakkerntobi"]
[Result "0-1"]
[WhiteElo "2170"]
[BlackElo "2049"]
[TimeControl "180+2"]
[EndTime "14:56:23 PDT"]
[Termination "Sjakkerntobi won by resignation"]

1. e4 {[%clk 0:03:01.8]} 1... Nc6 {[%clk 0:03:01]} 2. Nf3 {[%clk 0:03:01.2]}
2... e6 {[%clk 0:03:02.3]} 3. d4 {[%clk 0:02:57.6]} 3... d5 {[%clk 0:03:03.9]}
4. exd5 {[%clk 0:02:57.4]} 4... exd5 {[%clk 0:03:05]} 5. c3 {[%clk 0:02:58.6]}
5... Bd6 {[%clk 0:03:05.9]} 6. Bd3 {[%clk 0:02:59.5]} 6... Nge7 {[%clk
0:03:07.2]} 7. O-O {[%clk 0:02:54.3]} 7... Bg4 {[%clk 0:03:07]} 8. Re1 {[%clk
0:02:52]} 8... Qd7 {[%clk 0:03:07.3]} 9. b4 {[%clk 0:02:53.1]} 9... O-O {[%clk
0:02:51.7]} 10. Nbd2 {[%clk 0:02:38.5]} 10... Ng6 {[%clk 0:02:51.8]} 11. Nf1
{[%clk 0:02:22.1]} 11... Rae8 {[%clk 0:02:48.6]} 12. Rxe8 {[%clk 0:02:19.3]}
12... Rxe8 {[%clk 0:02:50.5]} 13. Bxg6 {[%clk 0:02:15.4]} 13... hxg6 {[%clk
0:02:49.6]} 14. Ne3 {[%clk 0:02:01.9]} 14... Be6 {[%clk 0:02:40.6]} 15. c4
{[%clk 0:01:40.4]} 15... Bxb4 {[%clk 0:01:57.5]} 16. Bb2 {[%clk 0:00:57.1]}
16... Be7 {[%clk 0:01:52.9]} 17. Qa4 {[%clk 0:00:42.1]} 17... Nxd4 {[%clk
0:01:34.1]} 18. Qxd7 {[%clk 0:00:39.6]} 18... Nxf3+ {[%clk 0:01:33.8]} 19. gxf3
{[%clk 0:00:40.8]} 19... Bxd7 {[%clk 0:01:35.7]} 20. Nxd5 {[%clk 0:00:39.5]}
20... Bd6 {[%clk 0:01:36.1]} 21. c5 {[%clk 0:00:30]} 21... Bxc5 {[%clk
0:01:33.3]} 22. Nxc7 {[%clk 0:00:30.4]} 22... Re2 {[%clk 0:01:33.4]} 23. Rd1
{[%clk 0:00:27.2]} 23... Bh3 {[%clk 0:01:28.4]} 24. Be5 {[%clk 0:00:10.9]} 24...
Rxf2 {[%clk 0:01:23.9]} 0-1

[Event "*** Titled Tuesday Blitz"]
[Site "Chess.com"]
[Date "2019.10.01"]
[Round "8"]
[White "Jumbo"]
[Black "GHANDEEVAM2003"]
[Result "0-1"]
[WhiteElo "2790"]
[BlackElo "2979"]
[TimeControl "180+2"]
[EndTime "14:56:50 PDT"]
[Termination "GHANDEEVAM2003 won by resignation"]

1. d4 {[%clk 0:03:01.9]} 1... e6 {[%clk 0:02:59.8]} 2. Nf3 {[%clk 0:03:01]} 2...
Nf6 {[%clk 0:03:00.3]} 3. c4 {[%clk 0:03:00.9]} 3... d5 {[%clk 0:03:00.8]} 4. g3
{[%clk 0:03:01.5]} 4... dxc4 {[%clk 0:03:00.5]} 5. Bg2 {[%clk 0:03:02.1]} 5...
Bd7 {[%clk 0:03:01.6]} 6. Ne5 {[%clk 0:03:01.4]} 6... Bc6 {[%clk 0:03:03]} 7.
Nxc6 {[%clk 0:03:02.4]} 7... Nxc6 {[%clk 0:03:04.9]} 8. e3 {[%clk 0:03:01.5]}
8... Qd7 {[%clk 0:03:05.6]} 9. O-O {[%clk 0:02:55.7]} 9... h5 {[%clk 0:03:06.5]}
10. Nd2 {[%clk 0:02:56.4]} 10... Na5 {[%clk 0:03:07]} 11. Qe2 {[%clk 0:02:56]}
11... Nd5 {[%clk 0:02:55.3]} 12. Nxc4 {[%clk 0:02:54.2]} 12... Nxc4 {[%clk
0:02:57.2]} 13. Qxc4 {[%clk 0:02:54.9]} 13... f5 {[%clk 0:02:58.7]} 14. Bd2
{[%clk 0:02:44.1]} 14... h4 {[%clk 0:02:56.8]} 15. Rfc1 {[%clk 0:02:42.1]} 15...
O-O-O {[%clk 0:02:40.4]} 16. b4 {[%clk 0:02:36]} 16... hxg3 {[%clk 0:02:36.4]}
17. hxg3 {[%clk 0:02:36.7]} 17... g5 {[%clk 0:02:37.8]} 18. a4 {[%clk
0:02:13.1]} 18... f4 {[%clk 0:02:36.7]} 19. a5 {[%clk 0:02:01.5]} 19... fxg3
{[%clk 0:02:34.7]} 20. fxg3 {[%clk 0:02:02.7]} 20... Qh7 {[%clk 0:02:22.5]} 21.
a6 {[%clk 0:01:14.9]} 21... Qh2+ {[%clk 0:02:22.5]} 22. Kf1 {[%clk 0:01:16]}
22... Bd6 {[%clk 0:02:22.6]} 23. axb7+ {[%clk 0:01:10.4]} 23... Kb8 {[%clk
0:02:23.4]} 24. Rxa7 {[%clk 0:01:06.2]} 24... Rdf8+ {[%clk 0:02:12.4]} 25. Ke2
{[%clk 0:01:05.1]} 25... Qxg2+ {[%clk 0:02:08.2]} 26. Kd3 {[%clk 0:01:06.3]}
26... Nf4+ {[%clk 0:01:26.5]} 27. gxf4 {[%clk 0:01:05.5]} 27... Kxa7 {[%clk
0:01:27.9]} 28. Ra1+ {[%clk 0:00:46.5]} 28... Kxb7 {[%clk 0:01:28.9]} 29. Qb5+
{[%clk 0:00:46.9]} 29... Kc8 {[%clk 0:01:29.6]} 30. Ra7 {[%clk 0:00:09.3]} 30...
Qf1+ {[%clk 0:01:28.3]} 0-1